bitfinex/quotes_SOLUSD_20240603
["timestamp","ask_amount","ask_price","bid_price","bid_amount"]
[1717388482312,13.3624,163.47,163.41,4.31]
[1717388482917,9.0524,163.47,163.41,4.31]
[1717388483629,2.2634,163.47,163.41,4.31]
[1717388484133,4.65,163.48,163.41,4.31]
[1717388484316,2.6034,163.47,163.39,6.1677]
[1717388484513,6.9134,163.47,163.4,4.31]
[1717388484831,2.6034,163.47,163.39,6.1677]
[1717388485040,6.9134,163.47,163.4,4.31]
[1717388485719,2.2635,163.46,163.39,6.1677]
[1717388485951,4.31,163.46,163.39,6.1677]
[1717388486232,2.6036,163.45,163.4,4.31]
[1717388486414,2.6036,163.45,163.39,10.4777]
[1717388486415,6.9136,163.45,163.39,10.4777]
[1717388486809,4.65,163.45,163.39,10.4777]
[1717388487010,4.65,163.45,163.39,6.1677]
[1717388487221,6.9136,163.45,163.39,10.4777]
[1717388489036,6.9136,163.45,163.39,6.1677]
[1717388489235,6.9136,163.45,163.39,4.31]
[1717388489427,4.31,163.44,163.38,4.31]
[1717388490233,5.02664873,163.44,163.35,6.2297]
[1717388490446,5.02664873,163.44,163.37,4.31]
[1717388490447,4.31,163.43,163.37,4.31]
[1717388490952,6.5742,163.42,163.32,16.4352]
[1717388491248,4.65,163.41,163.35,4.31]
[1717388491736,4.5271,163.46,163.36,4.31]
[1717388491737,0.71664873,163.46,163.36,4.31]
[1717388491943,0.71664873,163.46,163.31,6.643]
[1717388492140,4.31,163.36,163.31,6.643]
[1717388493242,2.2649,163.36,163.31,6.643]
[1717388493425,4.31,163.36,163.32,2.2654]
[1717388493735,0.71664873,163.35,163.32,2.2654]
[1717388495943,2.2646,163.38,163.33,2.2653]
[1717388496149,4.31,163.38,163.34,2.2652]
[1717388496468,4.31,163.38,163.32,4.31]
[1717388496645,6.5746,163.38,163.33,2.2653]
[1717388497022,2.2646,163.38,163.33,2.2653]
[1717388497229,6.5746,163.38,163.33,2.2653]
[1717388498534,2.2646,163.38,163.33,2.2653]
[1717388498835,6.5746,163.38,163.33,2.2653]
[1717388499149,4.31,163.37,163.33,2.2653]
[1717388501361,2.2646,163.38,163.33,2.2653]
[1717388501535,2.2646,163.38,163.34,2.2652]
[1717388501750,4.31,163.37,163.33,2.2653]
[1717388502052,2.2646,163.38,163.33,2.2653]
[1717388502445,4.31,163.37,163.33,2.2653]
[1717388504240,4.31,163.37,163.34,2.2651]
[1717388504539,4.31,163.37,163.31,10.953]
[1717388504540,4.31,163.37,163.33,2.2653]
[1717388505352,4.31,163.37,163.33,8.9225]
[1717388506932,6.5746,163.38,163.33,8.9225]
[1717388509748,2.2646,163.38,163.33,8.9225]
[1717388510148,6.5746,163.38,163.33,8.9225]
[1717388510658,2.2648,163.37,163.33,2.2653]
[1717388511541,6.5748,163.37,163.33,2.2653]
[1717388512068,2.2648,163.37,163.33,2.2653]
[1717388512641,0.17,163.36,163.3,2.2657]
[1717388512842,0.17,163.36,163.29,8.833]
[1717388512843,4.31,163.34,163.29,8.833]
[1717388513144,5.02664873,163.33,163.29,2.2658]
[1717388513562,0.71664873,163.33,163.29,2.2658]
[1717388515465,5.02664873,163.33,163.29,2.2658]
[1717388515649,4.31,163.33,163.29,2.2658]
[1717388515982,4.31,163.33,163.3,2.2657]
[1717388519556,0.71664873,163.32,163.25,6.236]
[1717388519762,4.31,163.31,163.25,10.546]
[1717388520256,4.31,163.31,163.28,2.2659]
[1717388521553,0.71664873,163.3,163.21,15.62979542]
[1717388521761,5.02664873,163.3,163.27,2.2661]
[1717388522362,0.71664873,163.29,163.27,2.2661]
[1717388523160,4.31,163.3,163.27,2.2661]
[1717388524166,6.3344,163.28,163.2,9.1934696]
[1717388524371,4.31,163.26,163.22,2.2667]
[1717388525177,4.31,163.26,163.23,2.2667]
[1717388525967,0.17,163.29,163.24,2.2665]
[1717388526167,6.5757,163.31,163.24,4.31]
[1717388526386,6.5757,163.31,163.26,2.2663]
[1717388526688,2.2657,163.3,163.25,2.2664]
[1717388529183,7.29234873,163.3,163.25,2.2664]
[1717388529569,4.31,163.29,163.25,2.2664]
[1717388529971,5.02664873,163.29,163.24,2.2665]
[1717388530283,6.576,163.28,163.23,2.2666]
[1717388530582,4.31,163.27,163.23,2.2666]
[1717388530991,2.266,163.28,163.23,2.2666]
[1717388531189,4.31,163.27,163.24,2.2665]
[1717388531572,6.576,163.28,163.24,2.2665]
[1717388532671,4.31,163.28,163.24,2.2665]
[1717388533066,2.2659,163.29,163.25,2.2664]
[1717388533288,2.6057,163.31,163.26,2.2663]
[1717388533584,6.5757,163.3,163.26,2.2663]
[1717388533789,6.5757,163.3,163.25,2.2664]
[1717388534787,2.2657,163.3,163.25,2.2664]
[1717388534995,6.5757,163.3,163.25,2.2664]
[1717388536974,2.2657,163.3,163.25,2.2664]
[1717388537177,2.2649,163.36,163.31,2.2655]
[1717388537717,4.31,163.37,163.33,2.2653]
[1717388538302,6.5748,163.37,163.33,2.2653]
[1717388538531,6.5748,163.37,163.31,4.31]
[1717388538663,6.5748,163.37,163.32,2.2654]
[1717388539567,2.2648,163.37,163.32,6.5754]
[1717388539992,2.2648,163.37,163.32,2.2654]
[1717388540169,2.2649,163.36,163.31,6.5755]
[1717388540375,15.1446,163.42,163.26,20.0]
[1717388540376,4.5278,163.44,163.32,6.028]
[1717388540694,4.31,163.39,163.34,2.2652]
[1717388541093,4.31,163.38,163.34,2.2652]
[1717388541570,4.31,163.39,163.34,2.2652]
[1717388543801,2.2644,163.4,163.35,2.265]
[1717388544315,6.5744,163.4,163.35,2.265]
[1717388544494,21.7678,163.44,163.34,2.2651]
[1717388544495,6.5745,163.39,163.34,2.2651]
[1717388544891,4.31,163.39,163.35,2.265]
[1717388545112,2.2644,163.4,163.35,2.265]
[1717388545336,6.5744,163.4,163.35,2.265]
[1717388547296,2.264,163.43,163.38,2.2646]
[1717388547491,4.31,163.42,163.38,2.2646]
[1717388547711,2.264,163.43,163.38,2.2646]
[1717388547919,4.31,163.42,163.38,2.2646]
[1717388548308,2.264,163.43,163.38,2.2646]
[1717388548521,6.574,163.43,163.38,2.2646]
[1717388548814,2.2641,163.42,163.37,4.31]
[1717388548988,6.5741,163.42,163.36,4.31]
[1717388549189,6.5741,163.42,163.32,6.028]
[1717388549406,4.31,163.4,163.34,4.31]
[1717388550428,6.5743,163.4,163.34,4.31]
[1717388550633,4.31,163.39,163.33,4.31]
[1717388551030,4.31,163.39,163.32,6.028]
[1717388551321,4.31,163.39,163.33,4.31]
[1717388551522,2.2642,163.41,163.34,4.31]
[1717388551836,4.31,163.41,163.35,4.31]
[1717388552203,6.9141,163.42,163.35,4.31]
[1717388552426,6.5742,163.41,163.35,4.31]
[1717388552810,4.31,163.41,163.35,4.31]
[1717388553499,2.6041,163.42,163.35,4.31]
[1717388553823,4.31,163.41,163.35,4.31]
[1717388554023,0.34,163.42,163.32,6.028]
[1717388554325,4.31,163.42,163.36,4.31]
[1717388555102,2.264,163.43,163.36,4.31]
[1717388555300,6.5741,163.42,163.36,4.31]
[1717388555510,2.6038,163.44,163.37,4.31]
[1717388555707,2.2639,163.43,163.33,20.0]
[1717388555908,6.5739,163.43,163.37,4.31]
[1717388556708,2.2639,163.43,163.37,4.31]
[1717388556908,6.5739,163.43,163.37,4.31]
[1717388557103,2.2639,163.43,163.37,4.31]
[1717388557300,2.6038,163.44,163.37,4.31]
[1717388557529,6.574,163.43,163.33,20.0]
[1717388557714,2.264,163.43,163.37,4.31]
[1717388558123,6.574,163.43,163.37,4.31]
[1717388558824,6.574,163.43,163.33,20.0]
[1717388559053,6.5741,163.42,163.36,4.31]
[1717388559233,4.31,163.41,163.33,20.0]
[1717388559527,4.31,163.41,163.34,4.31]
[1717388559704,6.5742,163.41,163.34,4.31]
[1717388560322,4.31,163.41,163.34,4.31]
[1717388560710,4.31,163.41,163.35,4.31]
[1717388561226,4.31,163.41,163.33,20.0]
[1717388561405,4.31,163.41,163.35,4.31]
[1717388561605,2.2641,163.42,163.35,4.31]
[1717388561832,4.31,163.41,163.35,4.31]
[1717388565632,6.1799,163.45,163.38,4.31]
[1717388565809,6.1799,163.45,163.39,4.31]
[1717388566013,8.4436,163.45,163.38,4.31]
[1717388566311,12.7536,163.45,163.38,4.31]
[1717388566507,4.31,163.44,163.38,4.31]
[1717388567429,2.2638,163.44,163.38,4.31]
[1717388567628,2.2638,163.44,163.34,2.44776838]
[1717388567833,6.5738,163.44,163.38,4.31]
[1717388568245,2.2638,163.44,163.38,4.31]
[1717388569533,2.2637,163.45,163.38,4.31]
[1717388569748,4.31,163.47,163.41,4.31]
[1717388570111,2.2635,163.46,163.41,4.31]
[1717388570525,2.2634,163.47,163.41,4.31]
[1717388570728,6.5734,163.47,163.41,4.31]
[1717388571314,2.2635,163.46,163.41,4.31]
[1717388571739,2.2635,163.46,163.39,2.44738757]
[1717388572042,2.2634,163.47,163.41,4.31]
[1717388572354,6.5734,163.47,163.41,4.31]
[1717388573570,2.2634,163.47,163.41,4.31]
[1717388574052,6.5734,163.47,163.41,4.31]
[1717388574267,4.31,163.47,163.41,4.31]
[1717388574466,6.5732,163.48,163.42,4.31]
[1717388575353,2.2634,163.47,163.42,4.31]
[1717388575532,2.2634,163.47,163.36,121.744]
[1717388575734,2.2634,163.47,163.42,4.31]
[1717388576139,6.5733,163.48,163.42,4.31]
[1717388578068,2.2633,163.48,163.42,4.31]
[1717388578247,6.5733,163.48,163.42,4.31]
[1717388578579,2.2633,163.48,163.42,4.31]
[1717388578771,6.5733,163.48,163.42,4.31]
[1717388579644,4.31,163.46,163.36,20.0]
[1717388579846,6.5736,163.46,163.36,20.0]
[1717388580068,6.5736,163.46,163.39,4.31]
[1717388580566,2.4334,163.47,163.36,26.124]
[1717388580752,2.4334,163.47,163.41,4.31]
[1717388580954,2.4334,163.47,163.36,30.434]
[1717388580955,4.31,163.46,163.36,20.0]
[1717388581158,2.4334,163.47,163.4,4.31]
[1717388581350,4.31,163.46,163.4,4.31]
[1717388581673,2.4334,163.47,163.4,4.31]
[1717388582144,4.31,163.46,163.4,4.31]
[1717388582964,8.8073,163.48,163.41,4.31]
[1717388583327,12.9473,163.48,163.41,4.31]
[1717388583444,6.374,163.48,163.42,4.31]
[1717388583644,10.684,163.48,163.42,4.31]
[1717388583842,12.9472,163.48,163.42,4.31]
[1717388584060,8.6372,163.48,163.42,4.31]
[1717388584258,2.2632,163.48,163.43,4.31]
[1717388584467,5.18158139,163.51,163.43,4.31]
[1717388584468,6.5731,163.49,163.43,4.31]
[1717388585182,2.2631,163.49,163.43,4.31]
[1717388585358,2.2632,163.48,163.43,4.31]
[1717388585874,2.2632,163.48,163.38,7.61031487]
[1717388586045,2.2632,163.48,163.43,4.31]
[1717388586563,2.2631,163.49,163.43,4.31]
[1717388586750,2.2631,163.49,163.39,20.0]
[1717388586942,2.2631,163.49,163.44,4.31]
[1717388587143,2.2634,163.47,163.39,20.0]
[1717388587545,6.5734,163.47,163.41,4.31]
[1717388587749,2.2634,163.47,163.41,4.31]
[1717388587951,6.5733,163.48,163.41,4.31]
[1717388588366,4.31,163.48,163.41,4.31]
[1717388588563,4.31,163.48,163.39,20.0]
[1717388588746,6.5732,163.48,163.41,4.31]
[1717388588945,6.5732,163.48,163.39,20.0]
[1717388589145,4.31,163.47,163.39,20.0]
[1717388589349,4.31,163.47,163.41,4.31]
[1717388590349,2.2634,163.47,163.38,6.3872]
[1717388590566,4.31,163.46,163.4,4.31]
[1717388591271,0.17,163.45,163.35,9.18466049]
[1717388591573,0.17,163.45,163.34,6.4084]
[1717388591574,4.31,163.44,163.38,4.31]
[1717388594850,4.31,163.4,163.34,9.18657207]
[1717388595191,0.88664873,163.43,163.34,4.31]
[1717388595192,2.434,163.43,163.34,4.31]
[1717388595403,4.31,163.42,163.36,4.31]
[1717388595681,4.48,163.43,163.37,4.31]
[1717388595853,2.2638,163.44,163.37,4.31]
[1717388596056,2.2638,163.44,163.38,4.31]
[1717388596057,4.31,163.44,163.38,4.31]
[1717388596284,4.31,163.44,163.33,18.38]
[1717388596586,6.5738,163.44,163.38,4.31]
[1717388597686,4.31,163.44,163.38,4.31]
[1717388598563,2.2637,163.45,163.38,4.31]
[1717388598768,4.31,163.44,163.38,4.31]
[1717388599290,2.2637,163.45,163.39,4.31]
[1717388599493,2.2637,163.45,163.34,47.73657207]
[1717388599494,6.5724,163.46,163.4,4.31]
[1717388599786,13.146,163.46,163.4,4.31]
[1717388600294,6.5737,163.45,163.39,4.31]
[1717388600500,6.5737,163.45,163.36,15.31057207]
[1717388600655,4.31,163.44,163.38,4.31]
[1717388601055,6.5737,163.45,163.39,4.31]
[1717388601688,2.2637,163.45,163.39,4.31]
[1717388602267,10.8824,163.46,163.39,4.31]
[1717388602588,10.8824,163.46,163.36,15.31057207]
[1717388602589,2.2639,163.44,163.38,4.31]
[1717388602800,2.2639,163.44,163.34,20.17]
[1717388602801,2.2637,163.45,163.35,9.18657207]
[1717388602961,2.2637,163.45,163.38,4.31]
[1717388603277,6.5737,163.45,163.36,9.18657207]
[1717388603490,4.31,163.44,163.38,4.31]
[1717388603858,6.5724,163.46,163.35,9.18657207]
[1717388604078,4.31,163.42,163.36,4.31]
[1717388604876,4.31,163.41,163.35,4.31]
[1717388605389,4.31,163.41,163.33,9.1865477]
[1717388605688,4.31,163.4,163.33,9.1865477]
[1717388605887,4.31,163.4,163.34,4.31]
[1717388606061,4.31,163.4,163.32,9.1865477]
[1717388606675,5.02664873,163.39,163.32,13.4965477]
[1717388606910,5.02664873,163.39,163.32,4.31]
[1717388607192,0.71664873,163.39,163.32,4.31]
[1717388607769,0.71664873,163.39,163.33,4.31]
[1717388608001,4.31,163.37,163.3,9.1865477]
[1717388608358,4.31,163.37,163.3,4.31]
[1717388608462,2.98124873,163.39,163.29,9.1865477]
[1717388608463,4.31,163.36,163.29,9.1865477]
[1717388608769,4.31,163.36,163.29,4.31]
[1717388609106,4.31,163.35,163.28,4.26597867]
[1717388609272,4.31,163.35,163.29,4.31]
[1717388609768,6.6351,163.34,163.31,2.2655]
[1717388610393,6.6244,163.32,163.31,2.2655]
[1717388610588,6.6244,163.32,163.3,2.2656]
[1717388611109,6.6244,163.32,163.31,2.2656]
[1717388611308,6.6244,163.32,163.3,2.2657]
[1717388611615,6.0397,163.31,163.29,2.2658]
[1717388611925,6.556,163.3,163.28,2.2659]
[1717388612261,6.556,163.3,163.27,2.2661]
[1717388612391,16.6623,163.3,163.27,2.2661]
[1717388612614,6.556,163.29,163.27,2.2661]
[1717388613422,4.31,163.31,163.27,2.2661]
[1717388613584,10.9495,163.31,163.27,2.2661]
[1717388613996,10.9495,163.31,163.28,2.266]
[1717388614222,6.6395,163.31,163.28,2.266]
[1717388614524,4.31,163.29,163.25,2.2663]
[1717388614819,6.0232,163.28,163.25,2.2663]
[1717388615144,10.3332,163.28,163.25,2.2663]
[1717388615412,10.3332,163.28,163.18,6.0293]
[1717388615413,10.4006,163.27,163.18,6.0293]
[1717388615707,4.31,163.26,163.16,4.883818]
[1717388615917,6.2616,163.25,163.22,2.2668]
[1717388616418,6.2616,163.25,163.21,2.267]
[1717388616614,15.5058,163.25,163.21,2.267]
[1717388616795,6.1496,163.24,163.2,2.267]
[1717388617129,10.4596,163.24,163.18,4.31]
[1717388617618,10.4596,163.24,163.19,2.2671]
[1717388618117,6.1496,163.24,163.18,4.31]
[1717388618324,22.4795,163.3,163.22,4.31]
[1717388618548,2.2659,163.29,163.24,2.2665]
[1717388618832,6.0727,163.31,163.26,4.31]
[1717388619122,22.8794,163.34,163.3,2.2657]
[1717388619613,22.8794,163.34,163.31,2.2656]
[1717388620117,6.4726,163.34,163.31,2.2656]
[1717388620497,6.4726,163.34,163.29,6.5758]
[1717388620814,6.4726,163.32,163.28,2.266]
[1717388621125,6.4726,163.32,163.29,2.2658]
[1717388621824,4.31,163.34,163.3,2.2657]
[1717388622023,6.3366,163.34,163.3,2.2657]
[1717388622402,6.3366,163.34,163.29,2.2658]
[1717388622601,6.3366,163.34,163.3,2.2657]
[1717388625717,6.3366,163.34,163.31,2.2656]
[1717388626691,6.3366,163.34,163.24,98.38]
[1717388626692,6.3366,163.34,163.32,2.2654]
[1717388627189,6.3366,163.34,163.31,2.2656]
[1717388627411,6.3366,163.34,163.3,2.2657]
[1717388627603,6.0924,163.33,163.29,2.2658]
[1717388627813,6.0924,163.33,163.3,2.2657]
[1717388628124,2.2649,163.36,163.31,2.2656]
[1717388628333,8.3573,163.36,163.31,2.2656]
[1717388628608,6.0924,163.35,163.31,2.2656]
[1717388630127,2.2651,163.35,163.24,20.0]
[1717388630304,6.7416,163.36,163.28,2.2659]
[1717388630506,2.2652,163.34,163.28,2.2659]
[1717388630928,6.5716,163.33,163.29,2.2659]
[1717388632228,6.5716,163.33,163.3,2.2657]
[1717388638538,6.5716,163.33,163.24,20.0]
[1717388638710,6.2142,163.32,163.29,2.2658]
[1717388639441,6.1945,163.31,163.27,2.266]
[1717388639635,6.1945,163.3,163.27,2.266]
[1717388640338,6.1945,163.3,163.28,2.266]
[1717388640854,6.2927,163.33,163.29,2.2658]
[1717388641153,6.2927,163.33,163.22,37.474]
[1717388641335,6.2927,163.33,163.23,20.0]
[1717388642339,6.4921,163.36,163.32,2.2654]
[1717388642525,6.4921,163.36,163.33,2.2653]
[1717388643564,2.2646,163.38,163.26,38.38]
[1717388643565,22.9052,163.38,163.35,2.265]
[1717388644342,22.9052,163.38,163.34,2.2651]
[1717388644926,6.2972,163.37,163.32,6.5854]
[1717388645151,6.2972,163.36,163.32,2.2654]
[1717388646042,6.2972,163.36,163.33,2.2653]
[1717388646339,6.5846,163.38,163.33,2.2653]
[1717388646512,13.1947,163.38,163.33,2.2653]
[1717388647117,13.1947,163.38,163.32,4.32]
[1717388647118,10.9301,163.38,163.34,2.2652]
[1717388649663,6.5846,163.38,163.33,2.2653]
[1717388649831,6.3565,163.37,163.33,2.2653]
[1717388650167,10.6765,163.37,163.31,4.32]
[1717388650455,4.32,163.35,163.29,4.32]
[1717388650750,16.5675,163.38,163.32,2.2654]
[1717388650958,4.32,163.36,163.32,2.2654]
[1717388651331,4.32,163.36,163.26,20.0]
[1717388651543,9.47804873,163.35,163.3,4.32]
[1717388651754,8.7614,163.35,163.29,4.32]
[1717388651960,8.7614,163.35,163.31,2.2656]
[1717388652257,6.4964,163.35,163.31,2.2656]
[1717388652555,13.79804873,163.35,163.3,2.2657]
[1717388652725,12.927,163.34,163.3,2.2657]
[1717388653128,12.927,163.34,163.29,2.2658]
[1717388653358,12.8114,163.33,163.29,2.2658]
[1717388653737,12.8114,163.33,163.28,2.2659]
[1717388653930,6.2261,163.32,163.28,2.2659]
[1717388654254,10.5461,163.32,163.28,2.2659]
[1717388655955,6.2261,163.32,163.28,2.2659]
[1717388656334,6.2261,163.32,163.29,2.2659]
[1717388656536,6.2261,163.32,163.27,2.2661]
[1717388656537,12.8116,163.32,163.27,2.2661]
[1717388656724,6.5066,163.31,163.27,2.2661]
[1717388657955,6.5066,163.31,163.28,2.266]
[1717388658532,6.5066,163.31,163.27,2.2661]
[1717388659531,6.5066,163.31,163.21,9.19361993]
[1717388659532,2.2658,163.3,163.21,9.19361993]
[1717388659732,8.7722,163.31,163.25,4.32]
[1717388659954,6.5066,163.31,163.27,2.2661]
[1717388660264,6.5066,163.31,163.28,2.266]
[1717388660558,0.17,163.32,163.28,2.266]
[1717388660938,2.4355,163.32,163.28,2.266]
[1717388661338,8.4967,163.33,163.28,2.266]
[1717388661559,8.4967,163.33,163.28,6.586]
[1717388662170,2.2655,163.32,163.28,6.586]
[1717388662538,2.2655,163.32,163.28,4.32]
[1717388663534,2.2656,163.31,163.27,6.5861]
[1717388663962,2.2656,163.31,163.27,2.2661]
[1717388664257,2.2655,163.32,163.27,6.5861]
[1717388664438,2.2655,163.32,163.28,2.266]
[1717388666184,2.2655,163.32,163.28,6.586]
[1717388666938,2.2655,163.32,163.28,2.266]
[1717388667137,2.2655,163.32,163.27,6.5861]
[1717388671761,2.2655,163.32,163.28,2.266]
[1717388672563,6.2314,163.33,163.29,2.2658]
[1717388672745,6.2314,163.33,163.29,6.5858]
[1717388673000,2.2653,163.34,163.29,6.5858]
[1717388674365,2.2653,163.34,163.26,9.19286648]
[1717388674366,2.2653,163.34,163.3,6.5857]
[1717388674950,2.2653,163.34,163.3,4.32]
[1717388675668,2.2653,163.34,163.29,6.5858]
[1717388676550,2.2653,163.34,163.3,9.03402374]
[1717388676947,2.2653,163.34,163.3,2.2657]
[1717388677146,4.32,163.36,163.3,4.32]
[1717388677147,2.2653,163.33,163.3,4.32]
[1717388677863,2.2653,163.33,163.29,6.5858]
[1717388678042,2.2649,163.36,163.31,2.2655]
[1717388678242,8.4508,163.37,163.33,4.32]
[1717388678451,8.4508,163.37,163.32,2.2654]
[1717388678452,2.2649,163.36,163.32,2.2654]
[1717388678687,2.2649,163.36,163.32,6.5854]
[1717388678975,2.2649,163.36,163.32,2.2654]
[1717388679771,8.4508,163.37,163.32,2.2654]
[1717388681759,6.535,163.36,163.32,2.2654]
[1717388681957,8.7999,163.36,163.31,2.2655]
[1717388682276,8.7999,163.36,163.31,6.5855]
[1717388682862,8.7999,163.36,163.32,4.32]
[1717388683178,8.7999,163.36,163.32,6.5854]
[1717388683679,8.7999,163.36,163.32,2.2654]
[1717388684047,6.535,163.36,163.32,2.2654]
[1717388684555,17.4966,163.36,163.31,2.2655]
[1717388684874,6.2128,163.35,163.31,6.5855]
[1717388685278,6.2128,163.35,163.31,2.2655]
[1717388685456,6.2128,163.35,163.31,6.5855]
[1717388687371,6.2128,163.35,163.32,2.2654]
[1717388694578,6.2128,163.35,163.33,2.2653]
[1717388694879,8.4853,163.37,163.33,2.2653]
[1717388695192,12.8053,163.37,163.33,2.2653]
[1717388696484,8.4853,163.37,163.33,2.2653]
[1717388698075,8.4853,163.37,163.31,4.32]
[1717388698076,8.4853,163.37,163.32,2.2654]
[1717388702679,12.8053,163.37,163.32,2.2654]
[1717388703589,8.4853,163.37,163.32,2.2654]
[1717388704407,2.2645,163.39,163.35,4.32]
[1717388704690,2.2645,163.39,163.35,6.585]
[1717388704859,2.2643,163.4,163.35,6.585]
[1717388705264,2.2643,163.4,163.36,2.2649]
[1717388705497,2.2643,163.4,163.35,4.32]
[1717388706007,2.2643,163.4,163.35,6.585]
[1717388707069,2.2645,163.39,163.35,6.585]
[1717388707595,2.2645,163.39,163.35,4.32]
[1717388710436,2.2642,163.41,163.37,6.5847]
[1717388710698,19.85,163.44,163.37,6.5847]
[1717388710699,2.2641,163.42,163.38,1.99139051]
[1717388712287,2.2642,163.41,163.38,2.44799197]
[1717388712596,2.2643,163.4,163.35,4.32]
[1717388713802,4.32,163.41,163.32,6.4122]
[1717388713971,4.32,163.39,163.33,4.32]
[1717388714768,2.2647,163.38,163.33,6.5852]
[1717388714970,2.2647,163.37,163.28,6.4122]
[1717388715175,2.2647,163.37,163.32,6.5854]
[1717388715479,2.2649,163.36,163.31,2.2655]
[1717388715709,6.5849,163.36,163.31,2.2655]
[1717388716279,6.5849,163.36,163.32,2.2654]
[1717388716479,4.32,163.36,163.32,2.2654]
[1717388716675,2.2649,163.36,163.32,2.2654]
[1717388718107,6.5848,163.37,163.32,2.2654]
[1717388718284,2.2648,163.37,163.32,2.2654]
[1717388718598,2.2646,163.38,163.33,6.5852]
[1717388718998,2.2646,163.38,163.33,2.2652]
[1717388719191,2.2645,163.39,163.34,4.32]
[1717388720300,2.2644,163.4,163.35,2.265]
[1717388720809,2.2645,163.39,163.34,6.5851]
[1717388720988,2.2645,163.39,163.34,2.2651]
[1717388721189,2.2645,163.39,163.34,6.5851]
[1717388721686,6.5845,163.39,163.34,6.5851]
[1717388722910,6.5845,163.39,163.34,2.2651]
[1717388723708,2.2646,163.38,163.34,2.2651]
[1717388723904,6.5845,163.39,163.34,2.2651]
[1717388724106,6.5845,163.39,163.33,4.32]
[1717388724107,2.2645,163.39,163.35,2.265]
[1717388724500,2.2644,163.4,163.35,6.585]
[1717388725199,10.964,163.44,163.29,98.38]
[1717388725200,6.5841,163.42,163.37,2.2647]
[1717388725400,2.2641,163.42,163.37,2.2647]
[1717388725794,2.2642,163.41,163.37,3.5177906]
[1717388726104,2.2642,163.41,163.37,2.2647]
[1717388726515,2.2642,163.41,163.36,4.32]
[1717388727325,2.2641,163.42,163.36,4.32]
[1717388727506,2.2641,163.42,163.37,4.32]
[1717388727695,2.2641,163.42,163.38,4.32]
[1717388729527,2.2641,163.42,163.33,6.124]
[1717388729528,2.2642,163.41,163.37,4.32]
[1717388730404,2.2642,163.41,163.36,4.32]
[1717388732421,6.5841,163.42,163.36,4.32]
[1717388733405,4.32,163.41,163.32,9.18833559]
[1717388733739,4.32,163.4,163.34,4.32]
[1717388734625,6.5843,163.41,163.35,4.32]
[1717388735324,2.2641,163.42,163.36,4.32]
[1717388735503,2.2641,163.42,163.37,4.32]
[1717388738032,4.32,163.42,163.33,15.31233559]
[1717388738252,4.32,163.42,163.36,4.32]
[1717388738599,6.5842,163.41,163.35,4.32]
[1717388740124,2.2643,163.4,163.35,4.32]
[1717388741130,6.5843,163.41,163.35,4.32]
[1717388742638,2.2643,163.4,163.34,4.32]